Cogmind - Beta 12 @@@ ROGUE MODE // 2023.06.13 @ 11:41:45 Player: deadnoob Result: Destroyed by 8R-AWN with 8R-AWN's Boregun Performance ------------- Evolutions (0) 0 Regions Visited (3) 600 Robots Destroyed (16) 80 Value Destroyed (361) 361 Prototype IDs (0) 0 Alien Tech Used (0) 0 Bonus (0) 0 TOTAL SCORE: 1041 Bonus ------- None Cogmind --------- Core Integrity 0/250 Matter 168/400 Energy 99/100 System Corruption 0% Temperature Cool (0) Movement Core (800) Ox15 Location -10/Exiles Parts ------- > --- POWER (1) -------- (None) > --- PROPULSION (2) --- (None) > --- UTILITY (2) ------ High-capacity Storage Unit Medium Matter Pod > --- WEAPON (2) ------- Light Assault Rifle Rocket Launcher > --- INVENTORY (20) --- Transport Network Coupler EMP Blaster EMP Blaster Shock Trap Shock Trap Peak State ------------ > --- POWER ------------ Ion Engine > --- PROPULSION ------- Light Treads Light Treads > --- UTILITY ---------- High-capacity Storage Unit Structural Scanner > --- WEAPON ----------- Assault Rifle Rocket Launcher > --- INVENTORY -------- Light Ion Engine Light Treads Improved Treads Improved Treads Improved Treads Improved Treads Medium Matter Pod Transport Network Coupler Assault Rifle Light Assault Rifle Light Assault Rifle EMP Blaster EMP Blaster Plasma Cutter Shock Trap Shock Trap [Rating: 10] Favorites ----------- Power Ion Engine Engine Ion Engine Propulsion Light Treads Treads Light Treads Leg Aluminum Leg Utility High-capacity Storage Unit Device Structural Scanner Storage High-capacity Storage Unit Weapon Assault Rifle Energy Gun Medium Laser Ballistic Gun Assault Rifle Launcher EMP Blaster Special Weapon Plasma Cutter Build | -11 -10 -10 -10 ------- Run | Jun Mat Min Exi Slots Evolved . | . . . . Power . | . . . . Propulsion . | . . . . Utility . | . . . . Weapon . | . . . . Parts Attached 26 | 1 9 3 13 Power 1 | . . . 1 Engine 1 | . . . 1 Core . | . . . . Reactor . | . . . . Propulsion 8 | . 3 . 5 Treads 8 | . 3 . 5 Leg . | . . . . Wheel . | . . . . Hover . | . . . . Flight . | . . . . Utility 5 | . 3 1 1 Device 1 | . . 1 . Storage 4 | . 3 . 1 Processor . | . . . . Hackware . | . . . . Protection . | . . . . Artifact . | . . . . Weapon 12 | 1 3 2 6 Energy Gun 1 | 1 . . . Energy Cannon . | . . . . Ballistic Gun 6 | . 2 1 3 Ballistic Cannon . | . . . . Launcher 4 | . 1 1 2 Special Weapon 1 | . . . 1 Impact Weapon . | . . . . Slashing Weapon . | . . . . Piercing Weapon . | . . . . Special Melee Weapon . | . . . . Unidentified Prototypes . | . . . . Parts Lost 15 | . . . 15 Power 2 | . . . 2 Propulsion 7 | . . . 7 Utility 1 | . . . 1 Weapon 5 | . . . 5 Highest Loss Streak 9 | . . . 9 To Critical Strikes 8 | . . . 8 Average Slot Usage (%) 98 | . 98 100 90 Engine 13 | . 14 14 8 Treads 27 | . 26 28 25 Device 8 | . . 12 12 Storage 18 | . 26 15 14 Ballistic Gun 27 | . 26 27 26 Naked Turns . | . . . . Heaviest Build 53 | 14 50 53 49 Greatest Support 43 | 20 40 40 43 Greatest Overweight (x) 1 | . 1 1 1 Average Overweight (x) . | . . 1 1 Largest Inventory Capacity 20 | 8 20 20 20 Average Capacity 16 | 8 10 20 20 Most Carried 19 | 6 13 19 19 Average Carried 14 | 5 9 17 14 Final Capacity 20 | 8 20 20 20 Final Carried 19 | 2 13 19 5 Class Distribution -------------------- 100% | Mutant Dominant Class ---------------- Mutant | -10/Materials Mutant | -10/Mines Mutant | -10/Exiles Resources | -11 -10 -10 -10 ----------- Run | Jun Mat Min Exi Matter Collected 591 | 200 329 62 . Remotely . | . . . . Salvage Created 601 | . 429 152 20 Parts 35 | . 25 10 . Haulers Intercepted 2 | . 2 . . Recyclers Shooed 1 | . 1 . . Parts Field Recycled . | . . . . Retrieved Matter . | . . . . Parts Self-Destructed . | . . . . Prevented . | . . . . Kills | -11 -10 -10 -10 ------- Run | Jun Mat Min Exi Combat Hostiles Destroyed 16 | . 4 5 7 Guns 7 | . 4 3 . AOE 9 | . . 2 7 Classes Destroyed 8 | . 6 1 1 Worker 2 | . 2 . . Hauler 2 | . 2 . . Recycler 1 | . 1 . . Operator 1 | . 1 . . Watcher 1 | . 1 . . Swarmer 3 | . . 3 . Grunt 6 | . 4 2 . Assembled 7 | . . . 7 Best Kill Streak 7 | . 3 3 7 Combat Bots Only 7 | . 2 3 7 Max Kills in Single Turn 3 | . 1 2 3 Gunslinging 1 | . . 1 . Exploded 3 | . . 1 3 Melee . | . . . . Uniques/NPCs Destroyed . | . . . . Combat | -11 -10 -10 -10 -------- Run | Jun Mat Min Exi Damage Taken 1981 | . 218 64 1699 Core 253 | . 11 25 217 Absorbed by Shields . | . . . . Core Remaining (%) 100 | 100 . . . Volleys Fired 88 | . 33 8 47 Largest 2 | . 2 2 2 Hottest 70 | . 70 40 40 Shots Fired 162 | . 64 12 86 Gun 147 | . 62 8 77 Cannon . | . . . . Launcher 9 | . 2 4 3 Special 6 | . . . 6 Kinetic 144 | . 59 8 77 Thermal 9 | . 3 . 6 Explosive 3 | . . . 3 Electromagnetic 6 | . 2 4 . Robot Hit Streak 20 | . 12 18 20 Robot Miss Streak 2 | . 2 1 1 Penetration Max . | . . . . Secondary Targets 1 | . . 1 . Max Gunslinging Chain 1 | . . 1 . Shots Hit Robots 131 | . 46 10 75 Core Hits 52 | . 19 7 26 Critical Kills 1 | . 1 . . Critical Parts Destroyed 1 | . 1 . . Critical Strikes 2 | . 2 . . Destroy 2 | . 2 . . Melee Attacks . | . . . . Impact . | . . . . Slashing . | . . . . Piercing . | . . . . Sneak Attacks . | . . . . Combat Hostiles . | . . . . Follow-up Attacks . | . . . . Damage Inflicted 2020 | . 596 208 1216 Guns 1242 | . 482 73 687 Cannons . | . . . . Explosions 696 | . 114 121 461 Melee . | . . . . Ramming 14 | . . 14 . Kinetic 1205 | . 445 73 687 Thermal 235 | . 151 16 68 Explosive 461 | . . . 461 Electromagnetic 105 | . . 105 . Impact . | . . . . Slashing . | . . . . Piercing . | . . . . Highest Corruption . | . . . . Average Corruption . | . . . . Corruption Purged . | . . . . Corruption Blocked . | . . . . Overload Shots . | . . . . Overflow Damage 80 | . 74 . 6 Projectiles . | . . . . Explosions 80 | . 74 . 6 Melee . | . . . . Knockbacks 1 | . . 1 . Impact 1 | . . 1 . Kinetic . | . . . . Secondary . | . . . . Self-Inflicted Damage 158 | . 56 . 102 Shots 4 | . 1 . 3 Rammed 1 | . . 1 . Targets Rammed 1 | . . 1 . Kicked . | . . . . Crushed . | . . . . Highest Temperature 27 | . 27 23 . Average Temperature 10 | . 9 13 . Received Heat Transfer 152 | . 90 42 20 Siege Activations . | . . . . Robots Corrupted . | . . . . Combat Hostiles . | . . . . Parts Fried . | . . . . Impact Corruptions . | . . . . Robots Melted . | . . . . Combat Hostiles . | . . . . Parts Melted . | . . . . Heat Transferred 265 | . 161 50 54 Parts Sabotaged . | . . . . Parts Stolen . | . . . . Parts Stripped . | . . . . Power Chain Reactions 1 | . . 1 . Missiles Intercepted . | . . . . Alert | -11 -10 -10 -10 ------- Run | Jun Mat Min Exi Peak Influence 279 | . 279 134 . Initial 52 | . . 52 . Average 72 | . 111 48 . Maximum Alert Level 1 | . 1 . . Low Security (%) 92 | 100 80 100 . Level 1 7 | . 19 . . Level 2 . | . . . . Level 3 . | . . . . Level 4 . | . . . . Level 5 . | . . . . High Security . | . . . . Max Security . | . . . . Squads Dispatched 3 | . 3 . . Investigation 1 | . 1 . . Extermination . | . . . . Reinforcement 2 | . 2 . . Assault . | . . . . Garrison . | . . . . Intercept . | . . . . Searches Triggered . | . . . . Construction Impeded . | . . . . Haulers Reinforced . | . . . . Active Scanning Responses . | . . . . Cargo Convoy Interrupts . | . . . . Stealth | -11 -10 -10 -10 --------- Run | Jun Mat Min Exi Distress Signals . | . . . . Communications Jammed . | . . . . Distress Signals . | . . . . Times Spotted 23 | . 9 5 9 Peak Tracking Total 9 | . 2 2 9 Tactical Retreats 1 | . . . 1 Traps | -11 -10 -10 -10 ------- Run | Jun Mat Min Exi Traps Triggered 1 | . 1 . . Indirectly 1 | . 1 . . Trap Hack Attempts . | . . . . Triggered . | . . . . Disarmed . | . . . . Reprogrammed . | . . . . Reused . | . . . . Traps Extracted . | . . . . Installed 2 | . . . 2 Triggered . | . . . . Most Traps Carried 4 | . . 4 4 Machines | -11 -10 -10 -10 ---------- Run | Jun Mat Min Exi Machines Disabled 10 | . 6 1 3 Max in Single Turn 6 | . 6 1 2 Machines Repaired . | . . . . Machines Sabotaged . | . . . . Overloaded Fab Kills . | . . . . Hacking | -11 -10 -10 -10 --------- Run | Jun Mat Min Exi Machines Accessed 5 | . 4 1 . Terminals 4 | . 3 1 . Fabricators . | . . . . Repair Stations . | . . . . Recycling Units 1 | . 1 . . Scanalyzers . | . . . . Garrison Access . | . . . . Total Hacks 12 | . 9 3 . Successful 6 | . 4 2 . Failed 6 | . 5 1 . Catastrophic 1 | . 1 . . Database Lockouts . | . . . . Manual 10 | . 7 3 . Terminals 11 | . 8 3 . Fabricators . | . . . . Repair Stations . | . . . . Recycling Units 1 | . 1 . . Scanalyzers . | . . . . Garrison Access . | . . . . Terminal Hacks 3 | . 1 2 . Robot Analysis 2 | . . 2 . Locate Traps 1 | . 1 . . Fabricator Hacks . | . . . . Repair Station Hacks . | . . . . Recycling Unit Hacks . | . . . . Scanalyzer . | . . . . Garrison Access Hacks . | . . . . Unauthorized Hacks 3 | . 3 . . Terminals 2 | . 2 . . Botnet 1 | . 1 . . Detonate 1 | . 1 . . Fabricators . | . . . . Repair Stations . | . . . . Recycling Units 1 | . 1 . . Tunnel 1 | . 1 . . Scanalyzers . | . . . . Garrison Access . | . . . . Data Cores Recovered . | . . . . Used . | . . . . Hacking Detections 3 | . 2 1 . Full Trace Events . | . . . . Feedback Events . | . . . . Feedback Blocked . | . . . . Robot Schematics Acquired . | . . . . Robots Built . | . . . . Authchips . | . . . . Time . | . . . . Total Robot Build Rating . | . . . . Part Schematics Acquired . | . . . . Parts Built . | . . . . Authchips . | . . . . Time . | . . . . Total Part Build Rating . | . . . . Parts Repaired . | . . . . Time . | . . . . Parts Recycled . | . . . . Recycled Matter . | . . . . Retrieved Matter . | . . . . Retrieved Components . | . . . . Parts Scanalyzed . | . . . . Part Schematics Acquired . | . . . . Parts Damaged . | . . . . Bothacking | -11 -10 -10 -10 ------------ Run | Jun Mat Min Exi Used RIF Installer . | . . . . Robots Hacked . | . . . . Non-combat . | . . . . Combat . | . . . . Robot Hacks Applied . | . . . . Relay Couplers Released . | . . . . Fabnet Peak Effective % . | . . . . Robots Rewired . | . . . . Allies Hacked . | . . . . Hacks Repelled . | . . . . Allies | -11 -10 -10 -10 -------- Run | Jun Mat Min Exi Total Allies . | . . . . Largest Group . | . . . . Highest-Rated Group . | . . . . Highest-Rated Ally . | . . . . Total Orders . | . . . . Ally Attacks . | . . . . Total Damage . | . . . . Kills . | . . . . Allies Corrupted . | . . . . Allies Melted . | . . . . Intel | -11 -10 -10 -10 ------- Run | Jun Mat Min Exi Robot Analysis Total 2 | . . 2 . Derelict Logs Recovered 3 | . . 3 . Drone Launches . | . . . . Drone Recoveries . | . . . . Exploration | -11 -10 -10 -10 ------------- Run | Jun Mat Min Exi Turns Passed 2483 | 4 848 1317 314 Spaces Moved 975 | 1 369 535 70 Core . | . . . . Treads 940 | . 335 535 70 Legs 35 | 1 34 . . Wheels . | . . . . Hover . | . . . . Flight . | . . . . Fastest Speed 120 | 120 120 240 240 Average Speed 210 | 120 162 240 240 Slowest Speed 240 | 120 240 240 240 Overloaded Moves . | . . . . Propulsion Burnouts . | . . . . Robots Hopped . | . . . . Cave-ins Triggered . | . . . . Exploration Rate (%) 44 | 1 58 97 22 Regions Visited 3 Branch Regions 2 Pre-discovered Areas 3 | . 1 2 . Known Exits Taken . | . . . . Unknown Exits Taken 3 | 1 1 1 . Scrap Searched 1 | . . 1 . Spaces Dug . | . . . . Terrain Destroyed 60 | . 36 5 19 Melee . | . . . . Projectile . | . . . . AOE 60 | . 36 5 19 Terrain Rammed . | . . . . Walls Destroyed . | . . . . Machines Disabled . | . . . . Actions | -11 -10 -10 -10 --------- Run | Jun Mat Min Exi Total 1256 | 5 562 555 134 Wait 131 | . 128 3 . Move 972 | . 368 534 70 Hop . | . . . . Pick Up 22 | . 17 5 . Fast Attach 2 | . 1 1 . Attach 14 | . 2 . 12 Detach 1 | . . 1 . Swap 10 | 1 6 2 1 Drop 13 | 4 7 . 2 Fire 88 | . 33 8 47 Melee . | . . . . Ram . | . . . . Kick . | . . . . Crush 1 | . . 1 . Escape Stasis . | . . . . Rewire . | . . . . Trap 2 | . . . 2 Miscellaneous . | . . . . Route ------- -11/Junkyard -10/Materials (discovered 3 exits: [*Mat x2] / *Min) -10/Mines (discovered 3 exits: [*Mat x2] / [*Exi]) -10/Exiles History --------- Turn | Location | Event 5 | -11/Junkyard | Discovered new exit (range 0) 5 | -11/Junkyard | Entered Materials 244 | -10/Materials | Discovered new exit (range 13) 331 | -10/Materials | Build established: Mutant 463 | -10/Materials | Discovered new exit (range 16) 771 | -10/Materials | Discovered new exit (range 11) 853 | -10/Materials | Entered Mines 994 | -10/Mines | Discovered new exit (range 9) 1130 | -10/Mines | Learned location of Storage (-8) 1284 | -10/Mines | Learned Materials garrison access intel 1294 | -10/Mines | Found a hidden stash of uninstalled traps 1561 | -10/Mines | Received a Rocket Launcher from a helpful Derelict 1611 | -10/Mines | Discovered new exit (range 9) 2160 | -10/Mines | Deemed a non-threat by the Exiles lab entrance 2160 | -10/Mines | Discovered new exit (range 5) 2170 | -10/Mines | Entered Exiles 2228 | -10/Exiles | Met 8R-AWN 2269 | -10/Exiles | Met EX-HEX 2304 | -10/Exiles | Warned about trapping Exiles lab 2308 | -10/Exiles | Attacked by the Exiles 2334 | -10/Exiles | Destroyed 7 combat bots 2401 | -10/Exiles | Core integrity fell below 50% 2431 | -10/Exiles | Lost 9 parts (2p5n2w) 2463 | -10/Exiles | Core integrity fell below 20% 2484 | -10/Exiles | Destroyed by 8R-AWN with 8R-AWN's Boregun Last Messages --------------- 02424_ Penetrated by HV Slug. 02435_ Machine disabled. 02437_ Penetrated by HV Slug. 02441_ Critical hit (Destroy). 02441_ Assault Rifle destroyed. 02445_ Penetrated by HV Slug. 02445_ Critical hit (Destroy). 02445_ Imp. Treads destroyed. 02450_ Penetrated by HV Slug. 02450_ Critical hit (Destroy). 02450_ Lgt. Assault Rifle destroyed. 02454_ Penetrated by HV Slug. 02454_ Structural Scanner destroyed. 02454_ Penetrated by HV Slug. 02466_ The unstable cave ceiling collapses. 02467_ Penetrated by HV Slug. 02471_ Imp. Treads destroyed. 02471_ Penetrated by HV Slug. 02471_ Plasma Cutter destroyed. 02475_ Penetrated by HV Slug. Map ----- +----------------------------------------------------+ | ?????????????????????????????????????????????????? | | ?????????????????????????????????????????????????? | | ?????????????????????????????????????????????????? | | ?????????????????????????????????????????????????? | | ?????????????????????????????????????????????????? | | ?????????????????????????????????????????????????? | | ?????????????????????????????????????????????????? | | ?????????????????????????????????????????????????? | | ?????????????????????????????????????????????????? | | ?????????????????????????????????????????????????? | | ?????????????????????????????????????????????????? | | ?????????????????????????????????????????????????? | | ?????????????????????????????????????????????????? | | ??????????????????###????????????????????????????? | | ??????????"??" ""?"###???????????????????????????? | | ???????? " """ """"##???????????????????????????? | | ??????? "" " ##??????????????????????????? | | ?????? " """##?????????#######??????????? | | ????? a"###???????########??????????? | | ????? " "#####?????###" ##??????????? | | ???? "####????###" ###?????????? | | ???? ""##??#####" #####??????## | | ????? "###?#### ############ | | ??????" ###### ########## | | ?????""" ! ##### #""""## | | ?????"""" !!! @;#" * | | ??### !!%!! g ## * | | ??##"""" !!! #### | | ??"" !!! "###"""""#### | | ?" #"""################ | | ? ####################### | | ? ########????????????#### | | ?? " ####????????????????????? | | ?? "" ""###?????????????????????? | | ???""" " " " "###??????????????????????? | | ???####""" " "####??????????????????????? | | ???######""""# ## ####???????????????????????? | | ??????######### # ###????????????????????????? | | ???????#################?????????????????????????? | | ?????????????###########?????????????????????????? | | ??????????????########???????????????????????????? | | ?????????????????????????????????????????????????? | | ?????????????????????????????????????????????????? | | ?????????????????????????????????????????????????? | | ?????????????????????????????????????????????????? | | ?????????????????????????????????????????????????? | | ?????????????????????????????????????????????????? | | ?????????????????????????????????????????????????? | | ?????????????????????????????????????????????????? | | ?????????????????????????????????????????????????? | +----------------------------------------------------+ Best States ------------- Heat Dissipation 25 Energy Generation 10 Energy Capacity 250 Matter Stores 400 Matter Capacity 400 Sight Range 16 Terrain Scan Density 10 Evasion (%) 50 Recoil Reduction 2 Item Schematics ----------------- None Robot Schematics ------------------ None Fabricated ------------ Nothing Alien Tech Used ----------------- None Achievements -------------- None Challenges ------------ None Game ------ Seed MicroRiotRay Manual? 0 Play Time 00:14:38 Cumulative 220.5 hours Start 2023.06.13 @ 11:29:36 End 2023.06.13 @ 11:41:45 Sessions 1 Manual Loads 0 Difficulty Rogue Special Mode None Game No. 305 Rogue 305 Adventurer 0 Explorer 0 Win Type - Total 7 Types 6/0/0/1/0/0/0/0/0 Lore% 82 Gallery% 86 Achievement% 69 Wizard Run 0 Options --------- ASCII 0 Keyboard 0 Movement Numpad Keybinds 0 Fullscreen 2 Font 18/SmallcapsGlow Map View 76x50 Tactical HUD 1 Map Filters NONE Filters NONE Steam 1 RUN: 6452f5a1-1fae-435a-9546-d57303460497